bitfinex/quotes_ETHUSD_20241203
["timestamp","ask_amount","ask_price","bid_price","bid_amount"]
[1733232765936,12.64716286,3585.2,3584.3,2.78993]
[1733232766256,8.77,3585.2,3584.0,0.0151495]
[1733232766399,8.77,3585.2,3584.0,0.0008]
[1733232766837,8.77,3585.2,3584.4,2.78979]
[1733232767045,8.77,3585.2,3584.6,2.78971]
[1733232767263,8.77,3585.9,3584.7,1.4868]
[1733232767395,8.77,3585.9,3585.1,2.78928]
[1733232768048,8.77,3585.9,3585.2,2.78917]
[1733232768248,8.77,3585.9,3585.2,1.4954]
[1733232768452,8.77,3585.9,3585.4,2.78906]
[1733232768927,1.4568,3586.3,3585.4,0.428446]
[1733232769127,1.4568,3586.3,3585.5,2.78899]
[1733232769324,1.4568,3586.3,3585.3,2.78915]
[1733232770115,1.4568,3586.3,3585.4,2.78904]
[1733232770316,1.4568,3586.3,3585.2,1.4954]
[1733232770546,1.4189,3586.6,3585.3,0.44279669]
[1733232770707,10.1889,3586.6,3586.1,2.78852]
[1733232770912,8.77,3586.6,3586.1,2.78852]
[1733232771213,8.77,3586.9,3586.2,2.78845]
[1733232771510,8.77,3586.9,3586.2,2.78846]
[1733232771704,8.77,3586.9,3586.3,0.426126]
[1733232771904,0.03485131,3586.8,3586.1,4.26132]
[1733232772121,0.03485131,3586.8,3586.2,2.78845]
[1733232772331,8.77,3586.9,3586.3,2.78837]
[1733232772947,8.77,3586.9,3586.1,1.4728]
[1733232773246,8.77,3586.9,3586.4,2.78826]
[1733232773449,8.77,3586.9,3586.2,2.78844]
[1733232774271,0.03485403,3586.8,3586.1,1.4728]
[1733232774408,0.03485403,3586.8,3586.0,2.78861]
[1733232774838,1.5174,3586.7,3585.9,2.78868]
[1733232775162,0.03485589,3586.6,3585.8,1.4679]
[1733232775452,8.80485589,3586.6,3585.6,2.78885]
[1733232775604,8.77,3586.6,3585.6,2.78885]
[1733232776011,8.77,3586.6,3585.3,1.846568]
[1733232776012,0.0348586,3586.5,3585.3,1.846568]
[1733232776262,0.0348586,3586.5,3585.5,2.789]
[1733232776500,8.77,3586.6,3585.3,1.4181]
[1733232776501,8.77,3586.6,3585.3,4.20724]
[1733232776639,8.77,3586.6,3585.1,2.7893]
[1733232776822,4.3670017,3586.5,3585.1,2.7893]
[1733232777156,8.77,3586.4,3584.8,1.4961]
[1733232777452,0.55,3586.2,3584.6,2.7897]
[1733232777654,12.64716286,3586.4,3584.3,1.4137]
[1733232777655,8.77,3585.8,3584.3,1.4137]
[1733232777859,0.03486909,3585.7,3584.6,2.78968]
[1733232778214,0.03486909,3585.7,3583.6,0.1536339]
[1733232778215,8.77,3584.6,3583.6,0.1536339]
[1733232778466,2.7901,3584.1,3583.6,0.1536339]
[1733232778763,0.55,3584.0,3583.6,0.1536339]
[1733232778946,1.4162,3584.4,3583.6,0.1536339]
[1733232779114,1.45108304,3584.4,3583.6,0.1536339]
[1733232779316,0.55,3584.1,3583.6,0.1536339]
[1733232779523,0.58488725,3584.1,3583.6,0.1536339]
[1733232780017,3.87716286,3583.7,3583.6,0.1536339]
[1733232780624,1.4661,3584.0,3583.6,0.1536339]
[1733232781019,3.87716286,3583.7,3583.6,0.1536339]
[1733232783123,1.4661,3584.0,3583.6,0.1536339]
[1733232783321,10.2361,3584.0,3583.6,0.1536339]
[1733232783975,3.87716286,3584.1,3583.6,0.1536339]
[1733232784140,3.87716286,3584.1,3583.7,2.79041]
[1733232784342,5.36366286,3584.5,3583.7,0.43742439]
[1733232784576,3.87716286,3584.5,3583.9,2.79025]
[1733232784733,3.87716286,3584.5,3584.0,2.79017]
[1733232784928,3.87716286,3584.5,3583.6,0.1536339]
[1733232785132,1.4679,3585.0,3583.8,2.79033]
[1733232785494,3.87716286,3584.2,3583.6,0.1536339]
[1733232785646,1.5019,3584.3,3583.6,0.1536339]
[1733232786145,0.03487963,3584.2,3583.6,0.1536339]
[1733232786328,1.5019,3584.3,3583.6,0.1536339]
[1733232786724,1.5019,3584.3,3583.6,2.9441039]
[1733232787200,1.5019,3584.3,3583.7,2.79038]
[1733232787558,1.4957,3584.7,3583.7,0.29440139]
[1733232787870,3.87716286,3585.0,3583.8,1.4899]
[1733232788241,1.4964,3585.1,3584.5,2.78977]
[1733232788444,1.4964,3585.1,3584.0,2.79012]
[1733232788671,3.87716286,3585.4,3583.8,1.4899]
[1733232788989,1.457,3585.9,3584.5,2.78978]
[1733232789135,3.87716286,3586.2,3584.8,1.4177]
[1733232789328,1.457,3586.3,3585.3,2.78912]
[1733232789572,1.457,3586.3,3583.5,6.79030806]
[1733232789573,3.87716286,3586.1,3583.5,6.79030806]
[1733232789872,3.87716286,3586.1,3584.2,2.79001]
[1733232789873,3.87716286,3585.7,3584.2,2.79001]
[1733232790040,3.87716286,3585.7,3584.0,1.5384]
[1733232790041,0.03487358,3585.6,3584.0,1.5384]
[1733232790225,1.4764,3585.9,3584.0,1.5384]
[1733232790226,8.77,3585.5,3584.0,1.5384]
[1733232790427,8.77,3585.5,3584.6,2.7897]
[1733232790728,8.77,3585.5,3584.6,2.78966]
[1733232790933,0.03487017,3585.4,3584.4,2.78985]
[1733232791135,1.5617,3585.3,3584.2,2.79001]
[1733232791373,1.5617,3585.3,3584.0,1.5384]
[1733232791584,1.5617,3585.3,3584.8,2.78953]
[1733232791749,8.77,3585.4,3584.5,2.78972]
[1733232791948,8.77,3585.4,3584.0,1.5384]
[1733232792263,8.77,3585.4,3584.8,2.78952]
[1733232792477,8.77,3585.4,3584.1,0.15384]
[1733232792647,1.5617,3585.7,3585.0,2.78936]
[1733232792862,0.03486646,3585.6,3585.0,2.78936]
[1733232793177,0.03486646,3585.6,3584.7,2.78956]
[1733232793537,0.03486646,3585.6,3584.0,1.5384]
[1733232793802,0.55,3585.4,3584.1,2.79002]
[1733232793938,0.03487345,3585.3,3584.2,2.78997]
[1733232794338,0.03487345,3585.3,3583.5,1.4393]
[1733232794339,10.868,3585.2,3583.5,1.4393]
[1733232794642,0.55,3585.0,3583.5,1.4393]
[1733232794901,8.77,3584.8,3583.5,1.4393]
[1733232795235,8.77,3584.8,3584.0,2.79013]
[1733232795437,8.77,3584.8,3584.1,2.79009]
[1733232795636,8.77,3584.8,3583.6,0.1536339]
[1733232796086,2.82453586,3584.7,3583.6,0.1536339]
[1733232796438,2.78987,3584.4,3583.6,0.1536339]
[1733232796645,8.80487879,3584.6,3583.6,0.1536339]
[1733232796646,1.9798,3584.3,3583.6,0.1536339]
[1733232797187,1.4298,3584.3,3583.6,0.1536339]
[1733232797382,1.4298,3584.3,3583.6,2.9441139]
[1733232797547,1.4298,3584.3,3583.7,2.79039]
[1733232797744,1.4298,3584.3,3583.8,2.79032]
[1733232798096,8.77,3585.7,3584.0,6.66733286]
[1733232798383,2.8716924,3586.7,3584.0,6.66733286]
[1733232798384,1.457,3585.8,3584.9,2.78946]
[1733232798593,1.457,3585.8,3584.1,4.5506]
[1733232798748,1.15215742,3586.6,3584.6,2.78968]
[1733232798950,8.77,3586.4,3585.8,2.78872]
[1733232799203,8.77,3586.4,3585.9,2.78862]
[1733232799497,0.03485901,3586.3,3585.4,2.78908]
[1733232799651,1.4407,3586.5,3585.0,2.7894]
[1733232799854,1.4407,3586.5,3585.7,2.7888]
[1733232800092,0.03485989,3586.4,3585.4,2.78905]
[1733232800259,2.78831,3586.4,3584.8,1.5458]
[1733232800465,2.78831,3586.4,3585.2,2.78924]
[1733232800466,2.82316989,3586.4,3585.2,2.78924]
[1733232800691,2.78847,3586.2,3585.0,2.78938]
[1733232800852,0.03486361,3586.1,3585.2,2.78921]
[1733232801055,0.03486361,3586.1,3584.8,1.5458]
[1733232801056,0.03486361,3586.1,3584.9,2.78943]
[1733232801280,1.5164,3586.0,3584.9,2.78943]
[1733232801469,1.55126577,3586.0,3584.9,2.78943]
[1733232801678,1.55126577,3586.0,3584.4,1.566]
[1733232801897,1.5164,3586.0,3584.5,0.01434132]
[1733232802255,1.5164,3586.0,3585.2,2.78921]
[1733232802840,1.5164,3586.0,3584.4,4.35586]
[1733232802841,1.5164,3586.0,3584.6,2.78971]
[1733232803119,8.77,3586.7,3585.6,2.78888]
[1733232803277,1.5686,3587.0,3585.3,2.78916]
[1733232803478,1.5686,3587.0,3586.1,2.78854]
[1733232803691,1.5686,3587.0,3586.0,1.5857]
[1733232803861,10.2426,3587.4,3586.3,2.78838]
[1733232804065,10.2426,3587.4,3586.7,2.78806]
[1733232804259,8.77,3587.3,3586.8,2.78798]
[1733232804505,8.77,3587.3,3586.5,2.78817]
[1733232804705,8.77,3587.3,3586.6,2.78813]
[1733232804913,8.77,3587.3,3586.0,1.5857]
[1733232805070,1.4726,3587.4,3586.0,1.5857]
[1733232805071,1.4726,3587.4,3586.3,2.78838]
[1733232805267,1.4726,3587.4,3587.0,2.78778]
[1733232805466,10.2426,3587.4,3586.1,0.437433]
[1733232805689,10.2426,3587.4,3586.8,2.78799]
[1733232805894,1.4726,3587.4,3586.9,2.78788]
[1733232806100,1.4726,3587.4,3587.0,2.78779]
[1733232806302,0.03484712,3587.3,3586.7,2.788]
[1733232806492,0.03484979,3587.3,3586.3,2.78831]
[1733232806702,0.03484979,3587.3,3586.0,4.3743]
[1733232806703,1.4726,3587.4,3586.2,2.78846]
[1733232806903,1.4726,3587.4,3586.5,2.78818]
[1733232807103,0.03485188,3587.3,3586.0,1.5857]
[1733232807313,8.77,3587.2,3585.5,2.78901]
[1733232807513,0.03485343,3587.1,3585.6,2.78893]
[1733232807826,8.77,3588.3,3586.0,2.78862]
[1733232808141,8.77,3588.1,3586.1,0.82034829]
[1733232808279,8.80484606,3588.0,3587.1,2.78776]
[1733232808483,4.36451,3588.2,3586.1,0.82034829]
[1733232808484,11.55701,3588.1,3586.8,2.78797]
[1733232808679,11.55701,3588.1,3585.9,1.5377]
[1733232808680,2.78737,3587.7,3586.4,2.7883]
[1733232808984,2.78737,3587.7,3585.5,1.5143]
[1733232808985,1.5094,3587.2,3585.5,1.5143]
[1733232809219,2.78787,3587.0,3585.8,2.78876]
[1733232809524,2.0499,3586.8,3585.1,2.14169921]
[1733232809693,2.7882,3586.6,3585.5,2.789]
[1733232810021,8.77,3586.4,3585.1,1.5969]
[1733232810325,2.78854,3586.2,3584.7,2.78963]
[1733232810523,2.8234154,3586.1,3584.6,1.5969]
[1733232810726,4.32512,3585.9,3584.8,2.78949]
[1733232810925,8.77,3585.8,3584.9,2.78944]
[1733232811720,8.77,3585.8,3584.5,0.63159391]
[1733232811721,11.55878,3585.8,3584.6,2.78964]
[1733232811921,8.77,3585.8,3584.2,2.44867628]
[1733232812228,8.77,3585.8,3584.9,2.78946]
[1733232813209,8.77,3585.8,3584.2,1.5759]
[1733232813549,8.77,3585.8,3584.9,2.78942]
[1733232814398,8.77,3585.8,3584.3,0.55673417]
[1733232814756,0.55,3585.7,3584.4,2.78986]
[1733232814939,8.77,3585.8,3584.9,2.78947]
[1733232815314,0.55,3585.7,3584.4,0.49224942]
[1733232815515,0.55,3585.7,3584.9,2.78943]
[1733232815833,1.5364,3585.9,3584.6,0.0143386]
[1733232816033,1.5364,3585.9,3585.2,2.78922]
[1733232816237,1.5364,3585.9,3584.9,2.78946]
[1733232816538,2.82363347,3585.8,3584.7,2.78962]
[1733232817397,1.57126831,3585.9,3584.8,2.78953]
[1733232817602,0.55,3585.8,3584.3,0.55673417]
[1733232817882,0.55,3585.8,3584.6,2.78963]
[1733232818195,1.5096,3585.7,3584.5,2.78977]
[1733232818399,10.31446806,3585.7,3584.6,2.78964]
[1733232818546,10.2796,3585.7,3584.6,2.78964]
[1733232818889,13.06848,3585.7,3584.6,2.78964]
[1733232819047,10.2796,3585.7,3584.7,2.78962]
[1733232819245,10.2796,3585.7,3584.8,2.78951]
[1733232819491,10.2796,3585.7,3585.1,2.78926]
[1733232819652,1.5447,3585.5,3583.8,1.5177]
[1733232819990,0.55,3585.8,3583.5,1.5206]
[1733232819991,3.87716286,3585.2,3583.5,1.5206]
[1733232820192,1.5447,3585.3,3584.6,2.78967]
[1733232820390,3.33933,3585.1,3583.6,0.1536339]
[1733232820548,3.33933,3585.1,3583.7,0.44647439]
[1733232820549,1.5447,3584.9,3583.7,0.44647439]
[1733232820753,2.78973,3584.6,3583.6,0.1536339]
[1733232820994,0.03487569,3584.5,3583.6,0.1536339]
[1733232821220,8.77,3584.8,3583.7,2.79041]
[1733232821716,8.77,3584.8,3584.2,2.79001]
[1733232822024,8.77,3584.8,3583.9,2.79018]
[1733232822174,8.77,3584.8,3583.6,0.1536339]
[1733232822380,1.5447,3584.9,3584.6,2.78968]
[1733232822601,0.55,3585.3,3583.9,1.5343]
[1733232822788,1.5944,3585.0,3584.1,2.79002]
[1733232822999,0.03487452,3584.9,3584.1,2.79002]
[1733232823397,1.5944,3585.0,3584.3,2.7899]
[1733232823793,1.5944,3585.0,3583.6,0.1536339]
[1733232823794,1.5944,3585.0,3584.0,2.79017]
[1733232823976,1.5944,3585.0,3583.7,2.79041]
[1733232824182,1.5944,3585.0,3584.7,2.78962]
[1733232824581,1.5944,3585.0,3584.5,2.78978]
[1733232824846,1.5944,3585.0,3583.7,2.79041]
[1733232825131,1.5944,3585.0,3584.7,2.78963]
[1733232825494,3.87716286,3586.0,3584.9,2.78946]
[1733232825495,1.5448,3585.4,3584.9,2.78946]
[1733232825827,1.5448,3585.4,3584.4,4.3388]
[1733232826253,0.03486798,3585.3,3584.4,2.78979]
[1733232826527,1.5448,3585.4,3584.5,2.78978]
[1733232826729,1.5448,3585.4,3584.0,1.549]
[1733232826730,0.0348708,3585.3,3584.2,2.79]
[1733232826936,1.5646,3585.2,3584.2,2.79]
[1733232827116,0.03487262,3585.1,3584.2,2.79]
[1733232827287,0.03487262,3585.1,3583.6,1.7185339]
[1733232827487,1.5646,3585.0,3583.6,1.7185339]
[1733232827680,0.03487432,3584.9,3583.7,0.45090439]
[1733232827881,0.03487432,3584.9,3583.6,0.1536339]
[1733232828156,0.03487432,3584.9,3583.6,2.9441039]
[1733232828157,4.26157,3584.8,3583.6,2.9441039]
[1733232828425,10.242,3584.4,3583.6,0.1536339]
[1733232828994,0.55,3584.2,3583.6,0.1536339]
[1733232829235,0.55,3583.9,3583.6,0.1536339]
[1733232831035,1.5285,3584.0,3583.6,0.1536339]
[1733232831233,1.5285,3584.0,3583.6,2.9441039]
[1733232831644,1.5285,3584.0,3583.6,0.1536339]
[1733232832098,0.55,3584.4,3583.6,0.1536339]
[1733232832523,0.55,3584.4,3583.6,2.9440739]
[1733232832723,0.55,3584.4,3583.6,0.1536339]
[1733232833311,3.19383113,3584.5,3583.6,2.9441139]
[1733232833647,0.55,3584.6,3583.6,2.9441139]
[1733232834038,2.82465919,3584.5,3583.6,0.1536339]
[1733232834715,0.03487919,3584.5,3583.6,0.1536339]
[1733232834897,0.55,3584.6,3583.6,0.1536339]
[1733232834898,0.55,3584.6,3583.6,2.9441039]
[1733232835101,1.4366,3584.5,3583.6,2.9441039]
[1733232835302,1.4366,3584.5,3583.6,0.1536339]
[1733232835549,0.03487917,3584.4,3583.6,0.1536339]
[1733232835849,1.5661,3584.3,3583.6,0.1536339]
[1733232836008,0.03487917,3584.2,3583.6,0.1536339]
[1733232837732,4.66523113,3584.7,3584.2,2.79]
[1733232838336,4.66523113,3584.7,3584.2,2.78998]
[1733232838735,1.4714,3584.7,3583.9,2.7902]
[1733232838956,5.34856286,3584.7,3583.9,2.7902]
[1733232839124,3.87716286,3584.3,3583.6,0.1536339]
[1733232839327,1.62127915,3584.2,3583.6,0.1536339]
[1733232839929,0.55,3584.1,3583.6,0.1536339]
[1733232840272,0.55,3583.9,3583.6,0.1536339]
[1733232840484,0.55,3584.1,3583.6,0.1536339]
[1733232841245,1.4878,3584.0,3583.6,0.1536339]
[1733232841486,3.87716286,3583.9,3583.6,0.1536339]
[1733232841784,4.55392338,3583.7,3583.6,0.1536339]
[1733232843489,4.55392338,3583.7,3582.1,0.005]
[1733232843490,1.4389,3582.4,3582.1,0.005]
[1733232843699,3.06612338,3582.2,3582.1,0.005]
[1733232843899,1.5706,3582.2,3582.1,0.005]
[1733232844107,1.5706,3582.9,3582.1,0.005]
[1733232844312,3.06612338,3582.4,3581.0,0.01439366]
[1733232844621,1.5585,3581.9,3580.6,0.55616861]
[1733232844761,1.5585,3581.9,3581.0,2.79246]
[1733232844965,1.5585,3581.9,3580.5,0.005]
[1733232845156,3.06612338,3581.6,3580.6,2.79277]
[1733232845361,3.06612338,3581.6,3580.5,0.005]
[1733232845609,1.5585,3581.5,3580.5,0.005]
[1733232845917,1.5585,3581.5,3581.0,2.79251]
[1733232846059,3.19383113,3581.7,3581.1,0.284251]
[1733232846258,3.19383113,3581.7,3580.9,1.5246]
[1733232846555,1.5022,3582.2,3580.9,1.53901489]
[1733232846762,1.5022,3582.2,3581.3,2.79225]
[1733232846966,5.38838236,3582.2,3581.1,2.79243]
[1733232847200,0.03490294,3582.1,3581.1,2.79243]
[1733232847558,5.38838236,3582.2,3581.1,2.79243]
[1733232847704,5.38838236,3582.2,3580.9,1.5246]
[1733232847909,5.38838236,3582.2,3581.0,2.79251]
[1733232848109,5.38838236,3582.2,3581.1,2.79236]
[1733232848415,0.03490292,3582.1,3580.8,2.84263]
[1733232848615,1.5416,3581.3,3580.8,0.05]
[1733232848822,0.03491087,3581.2,3580.8,0.05]
[1733232849314,1.5416,3581.3,3580.8,0.05]
[1733232850713,3.88618236,3581.8,3580.9,2.79259]
[1733232851012,3.88618236,3581.8,3580.8,0.05]
[1733232851320,3.88618236,3581.8,3580.8,2.84266]
[1733232851527,3.92108918,3581.8,3580.8,0.05]
[1733232851915,3.19383113,3581.7,3580.8,0.05]
[1733232852215,1.54260997,3581.6,3580.8,0.05]
[1733232852423,1.54260997,3581.6,3580.9,2.79258]
[1733232852624,1.5077,3581.6,3581.0,2.79249]
[1733232852829,1.5077,3581.6,3580.8,0.05]
[1733232852983,0.03490963,3581.5,3580.8,0.05]
[1733232853987,5.47668236,3581.4,3580.8,0.05]
[1733232854184,0.03491251,3581.3,3580.8,0.05]
[1733232854486,1.5905,3581.4,3580.8,0.05]
[1733232854688,4.69003113,3581.7,3581.5,2.79211]
[1733232854939,1.4962,3581.7,3581.3,2.79227]
[1733232855083,1.4962,3581.7,3581.0,2.79247]
[1733232855278,1.4962,3581.7,3581.2,2.79231]
[1733232855877,1.4962,3581.7,3580.8,0.05]
[1733232856085,1.4962,3581.7,3581.1,2.79239]
[1733232856286,1.505,3580.9,3580.8,0.05]
[1733232856922,1.4546,3581.4,3580.8,2.84267]
[1733232857124,1.4546,3581.4,3581.0,2.79251]
[1733232857323,1.4546,3581.4,3580.8,2.84266]
[1733232857494,3.19383113,3581.5,3581.0,2.79249]
[1733232857698,1.4969,3581.4,3580.8,0.05]
[1733232858085,0.0349109,3581.3,3580.8,0.05]
[1733232858428,1.4329,3581.2,3580.8,0.05]
[1733232859055,0.03491492,3581.1,3580.8,0.05]
[1733232859228,7.08001349,3581.0,3580.8,0.05]
[1733232859427,1.62031851,3580.9,3580.8,0.05]
[1733232860115,4.81414964,3580.9,3580.8,0.05]
[1733232860607,4.77923113,3580.9,3580.8,0.05]
[1733232861256,1.622,3581.3,3581.2,2.79236]
[1733232861550,3.88618236,3581.8,3581.0,2.79249]
[1733232861551,1.622,3581.7,3581.0,2.79249]
[1733232862152,1.622,3581.7,3581.2,2.79235]
[1733232862450,1.622,3581.7,3580.8,0.05]
[1733232862607,1.622,3581.7,3581.1,2.79236]
[1733232862810,1.65690664,3581.7,3580.9,2.79258]
[1733232863011,1.65690664,3581.7,3580.8,0.05]
[1733232864035,1.5667,3581.3,3580.8,0.05]
[1733232864243,1.5667,3581.1,3580.8,0.05]
[1733232864424,0.03491521,3581.0,3580.8,0.05]
[1733232864758,4.76333113,3580.9,3580.8,0.05]
[1733232866271,2.79284,3580.6,3578.9,2.7941]
[1733232866467,1.4768,3579.8,3579.2,2.7939]
[1733232866636,1.4768,3579.8,3578.3,4.36992]
[1733232866838,1.4768,3579.8,3579.0,2.79403]
[1733232867266,1.4768,3579.8,3578.9,2.79408]
[1733232867428,1.4768,3579.8,3579.1,2.79399]
[1733232867630,1.4768,3579.8,3579.2,2.79391]
[1733232867864,1.4768,3579.8,3578.7,0.55431461]
[1733232868027,1.4768,3579.8,3578.8,2.79423]
[1733232868374,1.4768,3579.8,3579.4,2.79375]
[1733232868729,1.4768,3579.8,3579.5,2.79367]
[1733232868952,1.4768,3579.8,3578.7,0.55431461]
[1733232868953,1.4768,3579.8,3579.2,2.79386]
[1733232869353,1.4768,3579.8,3579.0,2.79405]
[1733232869571,1.4768,3579.8,3579.1,2.79396]
[1733232869771,3.88618236,3579.9,3578.8,2.7942]
[1733232870101,3.88618236,3579.9,3579.2,2.79384]
[1733232870102,3.92111009,3579.9,3579.2,2.79384]
[1733232870271,1.635,3579.8,3579.2,2.79384]
[1733232870640,1.635,3579.8,3579.3,2.79383]
[1733232871029,1.635,3579.8,3579.4,2.79375]
[1733232871688,1.635,3579.8,3579.6,2.7936]
[1733232871856,1.635,3579.8,3579.7,2.79353]
[1733232872057,1.5497,3580.6,3579.2,1.5379]
[1733232872261,1.5497,3581.1,3580.1,1.5379]
[1733232872595,1.5497,3581.5,3581.1,2.79236]
[1733232872785,1.5497,3581.5,3581.0,2.7925]
[1733232872959,1.5497,3581.5,3580.3,2.79306]
[1733232872960,1.5497,3581.5,3581.1,2.79236]
[1733232873162,1.5497,3581.5,3580.1,1.69169]
[1733232873163,0.03490739,3581.4,3580.9,2.79251]
[1733232873347,1.5497,3581.5,3580.9,2.79251]
[1733232873683,0.03490836,3581.4,3580.2,2.79313]
[1733232873930,0.03491305,3581.3,3579.6,2.7936]
[1733232874066,1.5348,3581.1,3579.5,0.55]
[1733232874265,1.5348,3581.1,3580.2,2.79308]
[1733232874579,1.5348,3581.6,3580.5,1.4739]
[1733232875077,0.03490894,3581.5,3580.2,1.4739]
[1733232875265,1.5348,3581.6,3581.1,2.79243]
[1733232875974,1.5348,3581.6,3581.5,2.79212]
[1733232876228,3.19383113,3582.1,3580.2,1.4739]
[1733232876229,1.5102,3582.0,3580.2,1.4739]
[1733232876370,1.5102,3582.0,3581.6,2.79197]
[1733232876712,1.5102,3582.0,3581.4,2.79218]
[1733232876921,1.5102,3582.0,3581.0,1.5482]
[1733232877069,1.5102,3582.0,3581.6,2.79199]
[1733232877267,1.5102,3582.0,3581.4,2.79212]
[1733232877664,1.5102,3582.0,3581.3,2.79225]
[1733232877802,1.5102,3582.0,3580.6,1.5086]
[1733232877803,0.03490293,3581.9,3580.6,1.5086]
[1733232878113,0.03490293,3581.9,3579.7,5.85904255]
[1733232878114,1.6307,3581.8,3580.1,1.5086]
[1733232878288,1.6307,3581.5,3580.2,2.79311]
[1733232878472,1.66561448,3581.4,3580.0,2.79329]
[1733232878667,1.66561448,3581.4,3580.2,2.79311]
[1733232879436,1.66561448,3581.4,3580.0,2.79322]
[1733232879573,1.66561448,3581.4,3580.1,2.79321]
[1733232879776,1.66561448,3581.4,3579.6,0.56868]
[1733232880085,1.66561448,3581.4,3579.5,1.5086]
[1733232880401,1.66561448,3581.4,3580.2,2.79312]
[1733232880575,1.5116,3581.3,3580.4,2.79295]
[1733232880775,1.5116,3581.3,3579.5,1.5086]
[1733232880776,1.5116,3581.3,3579.8,2.79345]
[1733232880976,1.5116,3581.3,3580.9,2.79257]
[1733232881215,1.5116,3581.3,3581.0,2.79247]
[1733232881516,1.5116,3581.3,3580.6,2.79281]
[1733232881720,1.5116,3581.3,3579.6,5.45668236]
[1733232881870,1.5116,3581.3,3580.6,2.79282]
[1733232882070,1.5116,3581.3,3580.7,2.79274]
[1733232882313,1.5116,3581.3,3580.8,2.79265]
[1733232882621,1.5116,3581.3,3580.0,2.79324]
[1733232882812,0.03490921,3581.2,3580.3,2.79303]
[1733232882972,0.03490921,3581.2,3580.1,2.79321]
[1733232883170,0.03490921,3581.2,3580.2,2.79311]
[1733232883402,0.03490921,3581.2,3579.7,2.79346]
[1733232883675,1.6323,3581.1,3579.2,3.8640896]
[1733232883894,0.03491644,3581.0,3579.8,2.79337]
[1733232884097,1.6323,3580.9,3579.2,1.5587]
[1733232884404,1.6323,3580.7,3579.2,1.5587]
[1733232884728,1.66721724,3580.6,3578.8,4.35286]
[1733232884896,1.5682,3580.4,3578.7,0.5692573]
[1733232885098,1.60312416,3580.3,3578.7,0.5692573]
[1733232885429,1.60312416,3580.3,3578.8,2.79423]
[1733232885722,1.5682,3580.2,3578.9,2.79415]
[1733232885928,0.03492637,3580.1,3578.9,2.79415]
[1733232886078,0.03492637,3580.1,3579.1,2.79399]
[1733232886533,0.03492637,3580.1,3578.4,3.8776896]
[1733232886734,1.5682,3580.0,3578.5,1.06801331]
[1733232886899,1.5682,3580.0,3579.1,2.79398]
[1733232887632,1.5682,3580.0,3578.9,2.79413]
[1733232887982,1.5682,3580.0,3579.0,2.79405]
[1733232888511,1.5682,3580.0,3579.1,2.79393]
[1733232888715,1.5682,3580.0,3578.7,2.79431]
[1733232888938,1.5682,3580.0,3578.5,3.37340291]
[1733232888939,1.5682,3580.0,3578.9,2.79412]
[1733232889441,0.03492551,3580.3,3578.5,3.86240331]
[1733232889442,1.6041,3579.8,3578.5,3.37340291]
[1733232889644,1.6041,3579.8,3578.7,2.79428]
[1733232889810,1.6041,3579.8,3578.9,2.79408]
[1733232890298,0.03492679,3579.7,3578.9,2.79408]
[1733232890497,1.63902756,3579.8,3578.5,5.0998196]
[1733232890827,1.63902756,3579.8,3578.5,2.3053896]
[1733232891029,1.63902756,3579.8,3578.4,2.3053896]
[1733232891338,1.63902756,3579.8,3578.1,2.3053896]
[1733232891339,3.88618236,3579.5,3578.1,2.3053896]
[1733232891510,3.88618236,3579.5,3578.0,2.3053896]
[1733232891511,0.03493307,3579.4,3578.0,2.3053896]
[1733232891720,3.19383113,3579.3,3577.9,2.79491]
[1733232891936,0.03493386,3579.2,3577.9,2.79491]
[1733232892129,1.5883,3579.1,3577.8,1.65496437]
[1733232892445,3.19383113,3579.0,3577.8,2.88117437]
[1733232892702,3.19383113,3579.0,3577.8,0.08616437]
[1733232893023,0.03493608,3578.9,3577.8,0.08616437]
[1733232893430,3.22876868,3579.0,3577.8,0.08616437]
[1733232894268,3.19383113,3579.0,3577.8,0.10063705]
[1733232894555,3.19383113,3579.0,3577.8,0.08616437]
[1733232895059,1.5879,3578.8,3577.8,0.08616437]
[1733232895225,1.5879,3578.8,3578.0,2.79485]
[1733232895742,1.5879,3578.8,3578.0,3.08295144]
[1733232896256,1.5068,3580.1,3579.1,4.39572]
[1733232896486,1.5068,3580.1,3578.9,2.79407]
[1733232896652,1.5068,3580.1,3578.4,0.01445168]
[1733232896653,0.03492305,3580.0,3578.7,2.7943]
[1733232896855,1.5068,3579.8,3578.3,1.6018]
[1733232897062,1.5068,3579.6,3578.0,2.59349104]
[1733232897248,1.5068,3579.4,3578.0,0.28810144]
[1733232897439,1.5068,3579.4,3578.1,2.79477]
[1733232897981,1.5068,3579.4,3578.2,2.79469]
[1733232898209,1.5068,3579.4,3578.3,2.79462]
[1733232898358,1.5068,3579.4,3578.5,2.79444]
[1733232898881,1.5068,3579.4,3578.3,2.79462]
[1733232899091,1.5068,3579.4,3578.0,5.38829104]
[1733232899295,1.5068,3579.4,3578.3,2.79461]
[1733232899446,0.03492908,3579.3,3578.1,2.79477]
[1733232899646,0.03492908,3579.3,3578.1,3.50239254]
[1733232899897,1.5068,3579.4,3578.1,0.70762254]
[1733232900095,1.54173197,3579.4,3578.1,2.79477]
[1733232900387,1.54173197,3579.4,3578.2,2.79469]
[1733232900598,1.5068,3579.4,3578.0,3.08293144]
[1733232900799,0.03493075,3579.3,3578.0,0.28810144]
[1733232901009,1.5849,3579.2,3578.1,2.79477]
[1733232901309,1.5849,3579.2,3577.8,0.08616437]
[1733232901310,0.03493194,3579.1,3577.8,0.08616437]
[1733232901513,1.5849,3579.2,3578.0,2.79478]
[1733232901648,0.03493203,3579.1,3577.8,0.08616437]
[1733232902007,1.4735,3579.0,3577.8,0.08616437]
[1733232902726,1.4735,3579.0,3578.1,2.79477]